Cogmind - Beta 13 @@@ ROGUE MODE // 2024.04.05 @ 14:25:24 Player: Zish Result: Destroyed by G-47 Trooper with Particle Gun Performance ------------- Evolutions (2) 1000 Regions Visited (5) 1000 Robots Destroyed (27) 135 Value Destroyed (752) 752 Prototype IDs (0) 0 Alien Tech Used (0) 0 Bonus (297) 297 TOTAL SCORE: 3184 Bonus ------- Aligned with FarCom 300 Friendly Fire -3 Cogmind --------- Core Integrity 0/550 Matter 217/300 Energy 100/100 System Corruption 0% Temperature Cool (9) Movement Core (50) Location -8/Materials Parts ------- > --- POWER (1) -------- (None) > --- PROPULSION (4) --- (None) > --- UTILITY (3) ------ (None) > --- WEAPON (3) ------- (None) > --- INVENTORY (5) ---- Disposable Heat Sink Structural Scanner Structural Scanner Sensor Array Proton Bomb Trap Peak State ------------ > --- POWER ------------ Ion Engine > --- PROPULSION ------- Improved Treads Improved Treads Improved Treads Improved Treads > --- UTILITY ---------- Humpback Improved Light Armor Plating > --- WEAPON ----------- Small Laser Light Assault Rifle Rocket Launcher > --- INVENTORY -------- Disposable Heat Sink Structural Scanner Structural Scanner Sensor Array Terrain Scanner Light Armor Plating Mace Proton Bomb Trap Proton Bomb Trap Proton Bomb Trap [Rating: 19] Favorites ----------- Power Ion Engine Engine Ion Engine Propulsion Improved Treads Treads Improved Treads Utility Humpback Device Terrain Scanner Storage Humpback Processor Signal Interpreter Protection Improved Light Armor Plating Weapon Light Assault Rifle Energy Gun Small Laser Ballistic Gun Light Assault Rifle Launcher Grenade Launcher Impact Weapon Mace Build | -11 -10 -10 -10 -9 -8 ------- Run | Yrd Mat Min Exi Min Mat Slots Evolved 4 | . . . . . 4 Power . | . . . . . . Propulsion 2 | . . . . . 2 Utility 1 | . . . . . 1 Weapon 1 | . . . . . 1 Parts Attached 24 | 7 8 2 1 . 6 Power 2 | 1 1 . . . . Engine 2 | 1 1 . . . . Core . | . . . . . . Reactor . | . . . . . . Propulsion 6 | 2 2 . . . 2 Treads 6 | 2 2 . . . 2 Leg . | . . . . . . Wheel . | . . . . . . Hover . | . . . . . . Flight . | . . . . . . Utility 6 | 1 1 1 1 . 2 Device 1 | . . 1 . . . Storage 2 | 1 . . 1 . . Processor 1 | . 1 . . . . Hackware . | . . . . . . Protection 2 | . . . . . 2 Artifact . | . . . . . . Weapon 10 | 3 4 1 . . 2 Energy Gun 3 | 1 1 1 . . . Energy Cannon . | . . . . . . Ballistic Gun 3 | 2 1 . . . . Ballistic Cannon . | . . . . . . Launcher 2 | . 1 . . . 1 Special Weapon . | . . . . . . Impact Weapon 2 | . 1 . . . 1 Slashing Weapon . | . . . . . . Piercing Weapon . | . . . . . . Special Melee Weapon . | . . . . . . Unidentified Prototypes . | . . . . . . Parts Lost 15 | . 3 1 . . 11 Power 2 | . 1 . . . 1 Propulsion 4 | . . . . . 4 Utility 4 | . . 1 . . 3 Weapon 5 | . 2 . . . 3 Highest Loss Streak 5 | . 2 1 . . 5 To Critical Strikes . | . . . . . . Average Slot Usage (%) 87 | . 93 98 92 85 50 Engine 12 | . 13 14 14 14 2 Treads 27 | . 28 28 28 28 17 Device 3 | . . 12 6 . . Storage 13 | . 14 14 14 14 8 Processor 2 | . 8 . . . . Energy Gun 10 | . 4 14 14 14 2 Ballistic Gun 13 | . 14 14 14 14 8 Launcher 2 | . 7 . . . 3 Naked Turns 16 | . . . . . 16 Heaviest Build 214 | 13 15 13 207 207 214 Greatest Support 92 | 40 46 46 46 46 92 Greatest Overweight (x) 67 | . . . 4 4 67 Average Overweight (x) 1 | . . . 1 4 5 Largest Inventory Capacity 35 | 8 8 8 35 35 35 Average Capacity 21 | 7 8 8 21 35 33 Most Carried 14 | 4 7 7 8 14 13 Average Carried 6 | 1 3 5 6 10 10 Final Capacity 35 | 8 8 8 35 35 5 Final Carried 14 | 2 6 6 7 14 5 Class Distribution -------------------- 49% | Mutant 48% | Hauler-Mutant Dominant Class ---------------- Mutant | -10/Materials Mutant | -10/Mines Hauler-Mutant | -10/Exiles Hauler-Mutant | -9/Mines Hauler-Mutant | -8/Materials Resources | -11 -10 -10 -10 -9 -8 ----------- Run | Yrd Mat Min Exi Min Mat Matter Collected 697 | 237 232 49 . 114 65 Remotely . | . . . . . . Salvage Created 677 | . 433 25 . 97 122 Parts 44 | . 34 . . 3 7 Haulers Intercepted . | . . . . . . Recyclers Shooed . | . . . . . . Parts Field Recycled . | . . . . . . Retrieved Matter . | . . . . . . Parts Self-Destructed . | . . . . . . Prevented . | . . . . . . Kills | -11 -10 -10 -10 -9 -8 ------- Run | Yrd Mat Min Exi Min Mat Combat Hostiles Destroyed 19 | . 10 2 . 3 4 Guns 11 | . 4 2 . 3 2 AOE 8 | . 6 . . . 2 Classes Destroyed 9 | . 6 2 . 1 . Worker 3 | . 3 . . . . Builder 2 | . 1 . . . 1 Operator 1 | . 1 . . . . Watcher 3 | . 3 . . . . Swarmer 4 | . 3 . . 1 . Grunt 12 | . 7 . . 1 4 Brawler 1 | . . . . 1 . Demolisher 1 | . . 1 . . . Assembled 1 | . . 1 . . . Best Kill Streak 5 | . 5 1 . 2 3 Combat Bots Only 3 | . 3 1 . 2 2 Max Kills in Single Turn 3 | . 3 1 . 1 2 Gunslinging . | . . . . . . Exploded 2 | . 2 . . . 1 Melee . | . . . . . . Uniques/NPCs Destroyed . | . . . . . . Combat | -11 -10 -10 -10 -9 -8 -------- Run | Yrd Mat Min Exi Min Mat Hostile Shots Fired 184 | . 30 22 . 12 120 Missed 53 | . 10 6 . 3 34 Damage Taken 2553 | . 443 434 . 90 1586 Core 701 | . 93 52 . . 556 Absorbed by Shields . | . . . . . . Core Remaining (%) 71 | 100 . . . 42 . Volleys Fired 75 | . 24 13 . 15 23 Largest 3 | . 2 2 . 2 3 Hottest 93 | . 60 60 . 60 93 Shots Fired 128 | . 41 25 . 30 32 Gun 112 | . 33 25 . 30 24 Cannon . | . . . . . . Launcher 16 | . 8 . . . 8 Special . | . . . . . . Kinetic 75 | . 24 13 . 15 23 Thermal 37 | . 9 12 . 15 1 Explosive 16 | . 8 . . . 8 Electromagnetic . | . . . . . . Robot Hit Streak 12 | . 12 8 . 8 7 Robot Miss Streak 4 | . 2 2 . 2 4 Penetration Max . | . . . . . . Secondary Targets 2 | . 1 1 . . . Max Gunslinging Chain 1 | . 1 1 . . . Shots Hit Robots 85 | . 24 17 . 22 22 Core Hits 66 | . 31 8 . 9 18 Critical Kills . | . . . . . . Critical Parts Destroyed . | . . . . . . Critical Strikes . | . . . . . . Melee Attacks 10 | . 9 . . . 1 Impact 10 | . 9 . . . 1 Slashing . | . . . . . . Piercing . | . . . . . . Sneak Attacks . | . . . . . . Combat Hostiles . | . . . . . . Follow-up Attacks . | . . . . . . Damage Inflicted 2232 | . 1060 164 . 205 803 Guns 757 | . 240 164 . 205 148 Cannons . | . . . . . . Explosions 1430 | . 820 . . . 610 Melee 45 | . . . . . 45 Ramming . | . . . . . . Kinetic 482 | . 174 73 . 97 138 Thermal 275 | . 66 91 . 108 10 Explosive 1187 | . 577 . . . 610 Electromagnetic 243 | . 243 . . . . Impact 45 | . . . . . 45 Slashing . | . . . . . . Piercing . | . . . . . . Highest Corruption 5 | . . 5 5 5 . Average Corruption 5 | . . 5 5 5 . Corruption Purged . | . . . . . . Corruption Blocked . | . . . . . . Effects 75 | . . 8 42 25 . Message Errors 15 | . . . 8 7 . Matter Fused 20 | . . 4 9 7 . Heat Flow Errors 13 | . . 1 9 3 . Energy Discharges 11 | . . . 9 2 . Data Loss (minor) 8 | . . . 3 5 . Data Loss (major) 4 | . . 2 2 . . Misfires 1 | . . . . 1 . Alerts 2 | . . . 2 . . Weapon Failures 1 | . . 1 . . . Overload Shots . | . . . . . . Overflow Damage 9 | . . . . . 9 Projectiles . | . . . . . . Explosions 9 | . . . . . 9 Melee . | . . . . . . Knockbacks 1 | . . . . . 1 Impact 1 | . . . . . 1 Kinetic . | . . . . . . Secondary . | . . . . . . Self-Inflicted Damage 283 | . 237 . . . 46 Shots 12 | . 10 . . . 2 Rammed . | . . . . . . Targets Rammed . | . . . . . . Kicked . | . . . . . . Crushed . | . . . . . . Highest Temperature 255 | . 70 198 219 255 54 Average Temperature 61 | . 29 39 96 59 26 Received Heat Transfer 892 | . 99 40 . 42 711 Siege Activations . | . . . . . . Robots Corrupted . | . . . . . . Combat Hostiles . | . . . . . . Parts Fried 2 | . 1 . . 1 . Impact Corruptions . | . . . . . . Robots Melted . | . . . . . . Combat Hostiles . | . . . . . . Parts Melted . | . . . . . . Heat Transferred 631 | . 150 206 . 250 25 Parts Sabotaged . | . . . . . . Parts Stolen . | . . . . . . Parts Stripped . | . . . . . . Power Chain Reactions 1 | . 1 . . . . Alert | -11 -10 -10 -10 -9 -8 ------- Run | Yrd Mat Min Exi Min Mat Peak Influence 272 | . 272 77 . 80 80 Initial 42 | . . 42 . . . Average 63 | . 126 57 . 11 51 Maximum Alert Level 1 | . 1 . . . . Low Security (%) 95 | 100 88 100 . 100 100 Level 1 4 | . 11 . . . . Level 2 . | . . . . . . Level 3 . | . . . . . . Level 4 . | . . . . . . Level 5 . | . . . . . . High Security . | . . . . . . Max Security . | . . . . . . Squads Dispatched 2 | . 2 . . . . Investigation 1 | . 1 . . . . Extermination . | . . . . . . Reinforcement 1 | . 1 . . . . Assault . | . . . . . . Garrison . | . . . . . . Intercept . | . . . . . . Searches Triggered . | . . . . . . Construction Impeded . | . . . . . . Haulers Reinforced . | . . . . . . Active Scanning Responses . | . . . . . . Cargo Convoy Interrupts . | . . . . . . Stealth | -11 -10 -10 -10 -9 -8 --------- Run | Yrd Mat Min Exi Min Mat Distress Signals 1 | . 1 . . . . Communications Jammed . | . . . . . . Distress Signals . | . . . . . . Times Spotted 42 | . 13 19 . 3 7 Peak Tracking Total 14 | . 4 14 . 2 3 Tactical Retreats 1 | . 1 . . . . Traps | -11 -10 -10 -10 -9 -8 ------- Run | Yrd Mat Min Exi Min Mat Traps Triggered 1 | . 1 . . . . Indirectly . | . . . . . . Trap Hack Attempts . | . . . . . . Triggered . | . . . . . . Disarmed . | . . . . . . Reprogrammed . | . . . . . . Reused . | . . . . . . Traps Extracted . | . . . . . . Installed . | . . . . . . Triggered 1 | . . . . 1 . Most Traps Carried 3 | . . . . 3 3 Machines | -11 -10 -10 -10 -9 -8 ---------- Run | Yrd Mat Min Exi Min Mat Machines Disabled 7 | . 7 . . . . Max in Single Turn 2 | . 2 . . . . Machines Repaired . | . . . . . . Machines Dismantled . | . . . . . . Machines Sabotaged . | . . . . . . Overloaded Fab Kills . | . . . . . . Hacking | -11 -10 -10 -10 -9 -8 --------- Run | Yrd Mat Min Exi Min Mat Machines Accessed 8 | . 4 . 4 . . Terminals 3 | . 3 . . . . Fabricators . | . . . . . . Repair Stations 1 | . 1 . . . . Recycling Units . | . . . . . . Scanalyzers . | . . . . . . Garrison Access . | . . . . . . Total Hacks 55 | . 6 . 49 . . Successful 54 | . 5 . 49 . . Failed 1 | . 1 . . . . Catastrophic . | . . . . . . Database Lockouts . | . . . . . . Manual 3 | . 3 . . . . Terminals 5 | . 5 . . . . Fabricators . | . . . . . . Repair Stations 1 | . 1 . . . . Recycling Units . | . . . . . . Scanalyzers . | . . . . . . Garrison Access . | . . . . . . Terminal Hacks 54 | . 5 . 49 . . Record 50 | . 1 . 49 . . Branch Access Points 1 | . 1 . . . . Emergency Access Points 2 | . 2 . . . . Transport Status 1 | . 1 . . . . Fabricator Hacks . | . . . . . . Repair Station Hacks . | . . . . . . Recycling Unit Hacks . | . . . . . . Scanalyzer . | . . . . . . Garrison Access Hacks . | . . . . . . Unauthorized Hacks . | . . . . . . Terminals . | . . . . . . Fabricators . | . . . . . . Repair Stations . | . . . . . . Recycling Units . | . . . . . . Scanalyzers . | . . . . . . Garrison Access . | . . . . . . Data Cores Recovered . | . . . . . . Used . | . . . . . . Hacking Detections 4 | . 4 . . . . Full Trace Events . | . . . . . . Feedback Events . | . . . . . . Feedback Blocked . | . . . . . . Robot Schematics Acquired . | . . . . . . Robots Built . | . . . . . . Authchips . | . . . . . . Time . | . . . . . . Total Robot Build Rating . | . . . . . . Part Schematics Acquired . | . . . . . . Parts Built . | . . . . . . Authchips . | . . . . . . Time . | . . . . . . Total Part Build Rating . | . . . . . . Parts Repaired . | . . . . . . Time . | . . . . . . Parts Recycled . | . . . . . . Recycled Matter . | . . . . . . Retrieved Matter . | . . . . . . Retrieved Components . | . . . . . . Parts Scanalyzed . | . . . . . . Part Schematics Acquired . | . . . . . . Parts Damaged . | . . . . . . Bothacking | -11 -10 -10 -10 -9 -8 ------------ Run | Yrd Mat Min Exi Min Mat Used RIF Installer . | . . . . . . Robots Hacked . | . . . . . . Non-combat . | . . . . . . Combat . | . . . . . . Robot Hacks Applied . | . . . . . . Relay Couplers Released . | . . . . . . Fabnet Peak Effective % . | . . . . . . Robots Rewired . | . . . . . . Allies Hacked . | . . . . . . Hacks Repelled . | . . . . . . Allies | -11 -10 -10 -10 -9 -8 -------- Run | Yrd Mat Min Exi Min Mat Total Allies . | . . . . . . Largest Group . | . . . . . . Highest-Rated Group . | . . . . . . Highest-Rated Ally . | . . . . . . Total Orders . | . . . . . . Ally Attacks . | . . . . . . Total Damage . | . . . . . . Kills . | . . . . . . Allies Corrupted . | . . . . . . Allies Melted . | . . . . . . Intel | -11 -10 -10 -10 -9 -8 ------- Run | Yrd Mat Min Exi Min Mat Robot Analysis Total . | . . . . . . Derelict Logs Recovered . | . . . . . . Drone Launches . | . . . . . . Drone Recoveries . | . . . . . . Exploration | -11 -10 -10 -10 -9 -8 ------------- Run | Yrd Mat Min Exi Min Mat Turns Passed 4473 | 69 1061 259 1638 1067 379 Spaces Moved 1671 | 39 573 118 672 211 58 Core 8 | 7 . . . . 1 Treads 1663 | 32 573 118 672 211 57 Legs . | . . . . . . Wheels . | . . . . . . Hover . | . . . . . . Flight . | . . . . . . Fastest Speed 50 | 50 160 160 160 480 320 Average Speed 247 | 140 160 160 243 480 555 Slowest Speed 3400 | 160 160 160 480 480 3400 Overloaded Moves . | . . . . . . Propulsion Burnouts . | . . . . . . Robots Hopped . | . . . . . . Cave-ins Triggered . | . . . . . . Exploration Rate (%) 47 | 5 79 37 92 60 10 Regions Visited 5 Branch Regions 3 Pre-discovered Areas 1 | . . . 1 . . Known Exits Taken 1 | . 1 . . . . Unknown Exits Taken 4 | 1 . 1 1 1 . Scrap Searched 2 | . . 1 . 1 . Spaces Dug 7 | . 7 . . . . Terrain Destroyed 101 | . 46 . . . 55 Melee 7 | . 7 . . . . Projectile . | . . . . . . AOE 94 | . 39 . . . 55 Terrain Rammed . | . . . . . . Walls Destroyed . | . . . . . . Machines Disabled . | . . . . . . Actions | -11 -10 -10 -10 -9 -8 --------- Run | Yrd Mat Min Exi Min Mat Total 1896 | 54 664 165 679 243 91 Wait 81 | . 37 31 . 11 2 Move 1666 | 38 572 117 671 210 58 Hop . | . . . . . . Pick Up 32 | 8 10 1 5 7 1 Fast Attach . | . . . . . . Attach 24 | 7 8 2 1 . 6 Detach 4 | 1 2 1 . . . Swap . | . . . . . . Drop 4 | . 2 . 2 . . Fire 75 | . 24 13 . 15 23 Melee 10 | . 9 . . . 1 Ram . | . . . . . . Kick . | . . . . . . Crush . | . . . . . . Escape Stasis . | . . . . . . Rewire . | . . . . . . Trap . | . . . . . . Miscellaneous . | . . . . . . Route ------- -11/Scrapyard -10/Materials (discovered 4 exits: [*Mat x2] / *Min x2) -10/Mines (discovered 2 exits: [*Mat] / *Exi) -10/Exiles -9/Mines -8/Materials History --------- Turn | Location | Event 16 | -11/Scrapyard | Discovered new exit (range 16) 70 | -11/Scrapyard | Entered Materials 253 | -10/Materials | Discovered new exit (range 4) 310 | -10/Materials | Build established: Mutant 349 | -10/Materials | Discovered new exit (range 8) 500 | -10/Materials | Derelicts attacked the area 501 | -10/Materials | Discovered new exit (range 16) 604 | -10/Materials | Identified exit to Mines 964 | -10/Materials | Discovered new exit (range 10) 1131 | -10/Materials | Entered Mines 1132 | -10/Mines | Assembled infested the area 1139 | -10/Mines | Core integrity fell below 50% 1150 | -10/Mines | Met 8R-AWN 1260 | -10/Mines | Discovered new exit (range 8) 1382 | -10/Mines | Discovered new exit (range 5) 1390 | -10/Mines | Entered Exiles 1435 | -10/Exiles | Welcomed by 8R-AWN 1458 | -10/Exiles | Met EX-HEX 1522 | -10/Exiles | Met EX-BIN 1557 | -10/Exiles | Aligned with FarCom system 1558 | -10/Exiles | Given EX-Vault access code 1715 | -10/Exiles | Met EX-DEC 1730 | -10/Exiles | Learned location of Zion (-6) 1840 | -10/Exiles | Discovered new exit (range 10) 1950 | -10/Exiles | Visited The Gauntlet 2494 | -10/Exiles | Build established: Hauler-Mutant 3028 | -10/Exiles | Entered Mines 3203 | -9/Mines | Discovered new exit (range 10) 3440 | -9/Mines | Found a hidden stash of uninstalled traps 4095 | -9/Mines | Entered Materials 4095 | -8/Materials | Evolved 4 slots: Propulsion x2, Utility x1, Weapon x1 4252 | -8/Materials | Lost 5 parts (1p2n2w) 4459 | -8/Materials | Core integrity fell below 50% 4467 | -8/Materials | Core integrity fell below 20% 4474 | -8/Materials | Destroyed by G-47 Trooper with Particle Gun Last Messages --------------- 04440_ Mace severed. 04442_ U-05 Engineer lays Concrete. 04447_ R-06 Scavenger collects Mace. 04451_ Lgt. Armor Plating destroyed. 04456_ U-05 Engineer suffers critical hit (Burn). 04456_ U-05 Engineer destroyed. 04456_ K-01 Serf collects debris. 04456_ R-06 Scavenger collects Terrain Scan Processor. 04458_ Humpback destroyed. 04458_ K-01 Serf collects debris. 04464_ K-01 Serf destroyed. 04465_ K-01 Serf collects debris. 04468_ K-01 Serf destroyed. 04468_ K-01 Serf collects debris. 04470_ R-06 Scavenger collects Welding Torch. 04472_ K-01 Serf collects debris. 04473_ R-06 Scavenger collects Structural Scanner. Map ----- +----------------------------------------------------+ | ?????????????????????????????????????????????????? | | ?????????????????????????????????????????????????? | | ?????????????????????????????????????????????????? | | ?????????????????????????????????????????????????? | | ?????????????????????????????????????????????????? | | ?????????????????????????????????????????????????? | | ?????????????????????????????????????????????????? | | ?????????????????????????????????????????????????? | | ???????????????????????? ?????????????????????? | | ???????????????????????? ?????????????????????? | | ????????###########????? #?????????????????????? | | ????????# ^ #????? #?????????????????????? | | ????????# """"" #????# #?????????????????????? | | ????????# ""T"" #????# #?????????????????????? | | ????????# #????# #?????????????????????? | | ????????# #????# #?????????????????????? | | ????????# #????# ###???????????????????? | | ????????? ###??# # ##??????????????????? | | ??????????? ? ####g% # ###????????????????? | | ??????????###+##### # ## ## #???????????????? | | ??????????# ####### = ######## #?????????? | | ??????????# !% r a #?????????? | | ??????????# ! gk [ #?????????? | | ??????????# %! #?????????? | | ??????????# #######*%l! ########?????????????? | | ????######## #### # ###@### #????????????????? | | ????# #= # """" # &! ] ?????????????????? | | ????# [ # # """" # ?????????????????? | | ????# /= + """" # """ """ ?????????????????? | | ????# """ # # # """ """ #????????????????? | | ????# """ # # # """ """ #????????????????? | | ????# """ ?# # ] # #????????????????? | | ????######?############ "T" ?????Y???????????? | | ??????????????????????# ?????????????????? | | ??????????????????????#?????####?????????????????? | | ?????????????????????????????????????????????????? | | ?????????????????????????????????????????????????? | | ?????????????????????????????????????????????????? | | ?????????????????????????????????????????????????? | | ?????????????????????????????????????????????????? | | ?????????????????????????????????????????????????? | | ?????????????????????????????????????????????????? | | ?????????????????????????????????????????????????? | | ?????????????????????????????????????????????????? | | ?????????????????????????????????????????????????? | | ?????????????????????????????????????????????????? | | ?????????????????????????????????????????????????? | | ?????????????????????????????????????????????????? | | ?????????????????????????????????????????????????? | | ?????????????????????????????????????????????????? | +----------------------------------------------------+ Best States ------------- Heat Dissipation 31 Energy Generation 10 Energy Capacity 250 Matter Stores 300 Matter Capacity 300 Sight Range 16 Terrain Scan Range 14 Terrain Scan Density 10 Armor Coverage 150 Evasion (%) 50 Recoil Reduction 4 Item Schematics ----------------- None Robot Schematics ------------------ None Fabricated ------------ Nothing Alien Tech Used ----------------- None Achievements -------------- Tank Challenges ------------ None Game ------ Seed TerrabombContainmentBrace Manual? 0 Play Time 00:22:14 Cumulative 11.5 hours Start 2024.04.05 @ 14:03:46 End 2024.04.05 @ 14:25:24 Sessions 1 Manual Loads 0 Difficulty Rogue Special Mode None Game No. 27 Rogue 27 Adventurer 0 Explorer 0 Win Type - Total 0 Types 0/0/0/0/0/0/0/0/0 Lore% 15 Gallery% 21 Achievement% 20 Wizard Run 0 Options --------- Layout 1 ASCII 0 Keyboard 0 Movement Mouse Keybinds 0 Fullscreen 1 Font 24/Smallcaps Map View 50x35 Zoom Use 0% Tactical HUD 1 Map Filters NONE Filters NONE Steam 1 RUN: e1f21a3c-7d1f-47e9-a36d-ab1090ded3a5